bitfinex/quotes_BTCUSD_20220731
["timestamp","ask_amount","ask_price","bid_price","bid_amount"]
[1659272494891,0.08401733,23821.0,23820.0,0.00618886]
[1659272495539,0.08401733,23821.0,23820.0,0.01333739]
[1659272496208,0.08401733,23821.0,23820.0,0.00618886]
[1659272497720,0.08401733,23821.0,23820.0,0.01333739]
[1659272498150,0.08401733,23821.0,23820.0,0.01403936]
[1659272498356,0.08401733,23821.0,23820.0,0.00618886]
[1659272500015,0.08401733,23821.0,23820.0,0.01191558]
[1659272501396,0.11154197,23821.0,23820.0,0.01191558]
[1659272502299,0.08401733,23821.0,23820.0,0.01191558]
[1659272504812,0.08401733,23821.0,23820.0,0.0842167]
[1659272505933,0.08401733,23821.0,23820.0,0.08550354]
[1659272506166,0.08401733,23821.0,23820.0,0.0842167]
[1659272508168,0.08401733,23821.0,23820.0,0.07848998]
[1659272508395,0.13401733,23821.0,23820.0,0.07848998]
[1659272508675,0.43719533,23821.0,23820.0,0.07848998]
[1659272508900,0.13401733,23821.0,23820.0,0.07848998]
[1659272509119,0.08401733,23821.0,23820.0,0.07848998]
[1659272510979,0.13401733,23821.0,23820.0,0.07848998]
[1659272512143,0.08401733,23821.0,23820.0,0.07848998]
[1659272512836,0.54127466,23821.0,23820.0,0.07848998]
[1659272513751,0.84445266,23821.0,23820.0,0.07848998]
[1659272515802,1.14445266,23821.0,23820.0,0.07848998]
[1659272516534,0.84445266,23821.0,23820.0,0.07848998]
[1659272521799,0.84417305,23821.0,23820.0,0.07848998]
[1659272523877,0.08373772,23821.0,23820.0,0.09136523]
[1659272524377,0.08373772,23821.0,23820.0,0.0842167]
[1659272525770,0.08373772,23821.0,23820.0,0.09136523]
[1659272525979,0.08373772,23821.0,23820.0,0.0842167]
[1659272527491,0.11126236,23821.0,23820.0,0.0842167]
[1659272527895,0.16126236,23821.0,23820.0,0.07848998]
[1659272531405,0.56851969,23821.0,23820.0,0.07848998]
[1659272531867,0.51851969,23821.0,23820.0,0.07848998]
[1659272532084,0.49099505,23821.0,23820.0,0.07848998]
[1659272535669,0.51851969,23821.0,23820.0,0.07848998]
[1659272536809,0.49099505,23821.0,23820.0,0.07848998]
[1659272539462,0.51851969,23821.0,23820.0,0.07848998]
[1659272539916,0.56851969,23821.0,23820.0,0.07848998]
[1659272542037,0.86851969,23821.0,23820.0,0.07848998]
[1659272542506,1.97169769,23821.0,23820.0,0.07848998]
[1659272543030,1.57169769,23821.0,23820.0,0.00618886]
[1659272543235,2.16899769,23821.0,23820.0,0.00618886]
[1659272543713,1.76899769,23821.0,23820.0,0.00618886]
[1659272543951,0.82169769,23821.0,23820.0,0.00618886]
[1659272545640,0.82169769,23821.0,23820.0,0.00518886]
[1659272545881,0.87169769,23821.0,23820.0,0.00518886]
[1659272546473,0.51851969,23821.0,23820.0,0.00518886]
[1659272546677,0.51851969,23821.0,23820.0,0.00627882]
[1659272546929,0.82169769,23821.0,23820.0,0.00627882]
[1659272547127,0.56851969,23821.0,23820.0,0.00627882]
[1659272547715,0.87169769,23821.0,23820.0,0.00627882]
[1659272547944,0.82169769,23821.0,23820.0,0.00627882]
[1659272548497,0.51851969,23821.0,23820.0,0.00627882]
[1659272548726,1.17169769,23821.0,23820.0,0.00627882]
[1659272552208,0.87169769,23821.0,23820.0,0.00627882]
[1659272553336,1.17169769,23821.0,23820.0,0.00627882]
[1659272553527,0.87169769,23821.0,23820.0,0.00627882]
[1659272553839,1.17169769,23821.0,23820.0,0.00627882]
[1659272554080,0.87169769,23821.0,23820.0,0.00627882]
[1659272554527,1.17169769,23821.0,23820.0,0.00627882]
[1659272556049,1.17169769,23821.0,23820.0,0.00393925]
[1659272556731,1.17169769,23821.0,23820.0,0.00601085]
[1659272562981,1.17169769,23821.0,23820.0,0.00491085]
[1659272564131,0.87169769,23821.0,23820.0,0.00491085]
[1659272564339,1.17169769,23821.0,23820.0,0.00491085]
[1659272564563,1.17169769,23821.0,23820.0,0.00598355]
[1659272565634,0.05,23820.0,23812.0,0.0267133]
[1659272565859,0.40725733,23819.0,23813.0,0.303178]
[1659272565973,0.40725733,23819.0,23814.0,0.303178]
[1659272566180,0.40725733,23819.0,23815.0,0.303178]
[1659272566412,0.40725733,23819.0,23816.0,0.00752592]
[1659272566684,0.40725733,23819.0,23813.0,0.00572672]
[1659272566891,0.40725733,23819.0,23814.0,0.303178]
[1659272567337,0.40725733,23819.0,23813.0,0.00775828]
[1659272567547,0.40725733,23819.0,23814.0,0.303178]
[1659272567866,0.40725733,23819.0,23813.0,0.00775828]
[1659272568090,0.40725733,23819.0,23814.0,0.303178]
[1659272568752,0.45725733,23819.0,23813.0,0.00775828]
[1659272568974,0.40725733,23819.0,23814.0,0.303178]
[1659272569220,0.40725733,23819.0,23813.0,0.00775828]
[1659272569427,0.40725733,23819.0,23814.0,0.303178]
[1659272569656,0.45725733,23819.0,23813.0,0.00775828]
[1659272569917,0.40725733,23819.0,23814.0,0.303178]
[1659272570149,0.40725733,23819.0,23814.0,0.00406643]
[1659272570997,0.209913,23818.0,23814.0,0.00406643]
[1659272571202,0.02752464,23817.0,23814.0,0.00406643]
[1659272571586,0.209913,23818.0,23815.0,0.00714853]
[1659272571807,0.40725733,23819.0,23815.0,0.00714853]
[1659272572578,0.61716833,23819.0,23815.0,0.00714853]
[1659272573436,0.02752464,23818.0,23815.0,0.00714853]
[1659272574112,0.61716833,23819.0,23815.0,0.00714853]
[1659272574545,0.02752464,23818.0,23814.0,0.00609757]
[1659272574743,0.629806,23817.0,23815.0,0.00934482]
[1659272575400,0.209935,23817.0,23815.0,0.00209056]
[1659272575652,0.259935,23817.0,23815.0,0.00209056]
[1659272575884,0.259935,23817.0,23815.0,0.01145311]
[1659272576555,0.32752464,23818.0,23815.0,0.00419885]
[1659272576775,0.37752464,23818.0,23815.0,0.00419885]
[1659272577221,0.37752464,23818.0,23815.0,0.00631375]
[1659272577499,0.303178,23817.0,23815.0,0.00631375]
[1659272577702,0.37752464,23818.0,23815.0,0.00631375]
[1659272577929,0.513097,23817.0,23815.0,0.00631375]
[1659272578136,0.259919,23817.0,23815.0,0.00631375]
[1659272578577,0.259919,23817.0,23815.0,0.01346228]
[1659272578813,0.095,23816.0,23815.0,0.00631375]
[1659272579047,0.095,23816.0,23815.0,0.00213375]
[1659272579048,1.30225733,23816.0,23815.0,0.00213375]
[1659272579276,1.30225733,23816.0,23809.0,0.07233439]
[1659272579277,0.0021,23815.0,23809.0,0.07233439]
[1659272579557,0.095,23810.0,23809.0,0.07233439]
[1659272579801,0.703178,23813.0,23805.0,0.612]
[1659272580028,0.40725733,23812.0,23805.0,0.612]
[1659272580244,0.40725733,23812.0,23807.0,0.00572672]
[1659272580712,0.45725733,23812.0,23805.0,0.90159103]
[1659272581170,0.50625733,23812.0,23805.0,0.90159103]
[1659272581914,0.00504776,23810.0,23806.0,0.303178]
[1659272582134,0.00504776,23810.0,23807.0,0.31032653]
[1659272582361,0.00504776,23810.0,23807.0,0.00714853]
[1659272582602,0.00504776,23810.0,23805.0,0.612]
[1659272582603,0.0325724,23810.0,23805.0,0.612]
[1659272582819,0.0325724,23810.0,23805.0,0.001]
[1659272583038,0.05,23809.0,23805.0,0.001]
[1659272583291,0.303178,23808.0,23805.0,0.001]
[1659272583491,0.75725733,23809.0,23805.0,0.001]
[1659272583723,0.353178,23808.0,23805.0,0.00316925]
[1659272583962,0.75725733,23809.0,23805.0,0.00316925]
[1659272584192,0.303178,23808.0,23805.0,0.00316925]
[1659272584428,0.40725733,23809.0,23805.0,0.01031778]
[1659272584875,0.00559624,23808.0,23805.0,0.01031778]
[1659272585098,0.00559624,23808.0,23805.0,0.00316925]
[1659272585586,0.00559624,23808.0,23805.0,0.01031778]
[1659272585825,0.00505669,23807.0,23805.0,0.01031778]
[1659272586486,0.00505669,23807.0,23805.0,0.00316925]
[1659272587177,0.04558133,23807.0,23805.0,0.07816925]
[1659272587394,0.01805669,23807.0,23805.0,0.07816925]
[1659272588325,0.02752464,23806.0,23805.0,0.07816925]
[1659272588467,0.02752464,23806.0,23805.0,0.00316925]
[1659272589097,0.02752464,23806.0,23805.0,0.08016925]
[1659272589329,0.095,23806.0,23805.0,0.08016925]
[1659272589546,0.12478133,23807.0,23805.0,0.08016925]
[1659272590415,0.09725669,23807.0,23805.0,0.00316925]
[1659272590627,0.00505669,23807.0,23805.0,0.00316925]
[1659272591111,0.00505669,23807.0,23805.0,0.00323231]
[1659272591322,0.00505669,23807.0,23805.0,0.08538084]
[1659272591323,0.01805669,23807.0,23805.0,0.08538084]
[1659272591991,0.01805669,23807.0,23805.0,0.08531778]
[1659272592206,0.04558133,23807.0,23805.0,0.07816925]
[1659272592439,0.04558133,23807.0,23805.0,0.00316925]
[1659272592656,0.03258133,23807.0,23805.0,0.00316925]
[1659272593151,0.03258133,23807.0,23805.0,0.08016925]
[1659272594004,0.03258133,23807.0,23805.0,0.07993425]
[1659272594272,0.03258133,23807.0,23805.0,0.08708278]
[1659272594273,0.00505669,23807.0,23805.0,0.08708278]
[1659272594506,0.00505669,23807.0,23805.0,0.01008278]
[1659272594749,0.00505669,23807.0,23806.0,0.303178]
[1659272594968,0.00505669,23807.0,23805.0,0.01008278]
[1659272595219,0.03258133,23807.0,23805.0,0.38311225]
[1659272595433,0.12478133,23807.0,23805.0,0.07993425]
[1659272595650,0.00505669,23807.0,23806.0,0.303178]
[1659272595870,0.00505669,23807.0,23805.0,0.07993425]
[1659272596504,0.02752464,23806.0,23805.0,0.00293425]
[1659272596763,0.00505669,23807.0,23805.0,0.00293425]
[1659272597207,0.00505669,23807.0,23805.0,0.08093425]
[1659272597430,0.00505669,23807.0,23805.0,0.08808278]
[1659272597635,0.12478133,23807.0,23805.0,0.08093425]
[1659272598298,0.095,23806.0,23805.0,0.08093425]
[1659272598512,0.12478133,23807.0,23805.0,0.00293425]
[1659272599169,0.095,23806.0,23805.0,0.07793425]
[1659272599444,0.01805669,23807.0,23806.0,0.00572672]
[1659272600324,0.01805669,23807.0,23805.0,0.07793425]
[1659272600546,0.00505669,23807.0,23805.0,0.01008278]
[1659272600808,0.09725669,23807.0,23805.0,0.00293425]
[1659272601031,0.09725669,23807.0,23805.0,0.00300085]
[1659272601283,0.11025669,23807.0,23805.0,0.07800085]
[1659272601928,0.01805669,23807.0,23805.0,0.07800085]
[1659272602162,0.01805669,23807.0,23805.0,0.07793425]
[1659272602392,0.11025669,23807.0,23805.0,0.07800085]
[1659272602601,0.09725669,23807.0,23805.0,0.00300085]
[1659272602812,0.02752464,23806.0,23805.0,0.00300085]
[1659272603037,0.095,23806.0,23805.0,0.00300085]
[1659272603251,0.11025669,23807.0,23805.0,0.07800085]
[1659272603464,0.01805669,23807.0,23805.0,0.07793425]
[1659272603709,0.04558133,23807.0,23805.0,0.07793425]
[1659272604128,0.01805669,23807.0,23805.0,0.07793425]
[1659272604617,0.00505669,23807.0,23805.0,0.00293425]
[1659272604837,0.02752464,23806.0,23805.0,0.00293425]
[1659272605279,0.02752464,23806.0,23805.0,0.07793425]
[1659272605702,0.01805669,23807.0,23805.0,0.07793425]
[1659272606139,0.04558133,23807.0,23805.0,0.07793425]
[1659272606588,0.00505669,23807.0,23806.0,0.0102553]
[1659272606805,0.00505669,23807.0,23806.0,0.01740383]
[1659272607024,0.00505669,23807.0,23806.0,0.00572672]
[1659272607251,0.00505669,23807.0,23806.0,0.08072672]
[1659272607670,0.00505669,23807.0,23806.0,0.08787525]
[1659272607885,0.00505669,23807.0,23806.0,0.08072672]
[1659272608618,0.00505669,23807.0,23806.0,0.00572672]
[1659272609206,0.00559624,23808.0,23806.0,0.08382726]
[1659272609836,0.00559624,23808.0,23806.0,0.09097579]
[1659272610196,0.209964,23812.0,23806.0,0.09097579]
[1659272610434,0.96722133,23812.0,23806.0,0.00782726]
[1659272610898,0.303178,23811.0,23806.0,0.00782726]
[1659272611128,1.01922133,23812.0,23806.0,0.00782726]
[1659272611351,0.71043533,23811.0,23806.0,0.00782726]
[1659272611583,0.61723833,23810.0,23806.0,0.00782726]
[1659272611828,0.02752464,23809.0,23806.0,0.00782726]
[1659272613207,0.08152464,23809.0,23806.0,0.00782726]
[1659272613659,0.08152464,23809.0,23806.0,0.00210054]
[1659272614312,0.209996,23808.0,23806.0,0.00210054]
[1659272615417,0.217996,23808.0,23806.0,0.07310054]
[1659272616101,0.62525333,23808.0,23806.0,0.07310054]
[1659272616342,0.46525733,23808.0,23806.0,0.07310054]
[1659272616572,0.095,23807.0,23806.0,0.07310054]
[1659272617014,0.46525733,23808.0,23806.0,0.07310054]
[1659272617231,0.095,23807.0,23806.0,0.07810054]
[1659272617449,0.40725733,23808.0,23806.0,0.07810054]
[1659272618161,0.4129308,23808.0,23806.0,0.07810054]
[1659272618614,0.4129308,23808.0,23806.0,0.00210054]
[1659272619317,0.4129308,23808.0,23806.0,0.07310054]
[1659272619318,0.4209308,23808.0,23806.0,0.07310054]
[1659272620553,0.4129308,23808.0,23806.0,0.00210054]
[1659272620783,0.5129308,23808.0,23806.0,0.00210054]
[1659272621216,0.5699308,23808.0,23806.0,0.00210054]
[1659272621471,0.303178,23807.0,23806.0,0.00210054]
[1659272621666,0.4699308,23808.0,23806.0,0.00210054]
[1659272622339,0.5199308,23808.0,23806.0,0.00210054]
[1659272622600,0.4129308,23808.0,23806.0,0.00210054]
[1659272623155,0.4699308,23808.0,23806.0,0.00210054]
[1659272623535,0.4699308,23808.0,23806.0,0.00216713]
[1659272623747,0.5199308,23808.0,23806.0,0.00216713]
[1659272624432,0.4699308,23808.0,23806.0,0.00216713]
[1659272624656,0.4129308,23808.0,23806.0,0.00210054]
[1659272624871,0.4129308,23808.0,23806.0,0.00216713]
[1659272625344,0.4699308,23808.0,23806.0,0.00216713]
[1659272625681,0.5199308,23808.0,23806.0,0.00216713]
[1659272625881,0.5199308,23808.0,23806.0,0.00210054]
[1659272626528,0.4129308,23808.0,23806.0,0.00210054]
[1659272626744,0.40725733,23807.0,23806.0,5.4e-07]
[1659272626968,0.40725733,23807.0,23801.0,6.011e-05]
[1659272626969,0.145,23805.0,23801.0,6.011e-05]
[1659272627175,0.145,23802.0,23801.0,6.011e-05]
[1659272627403,0.448178,23802.0,23801.0,6.011e-05]
[1659272627617,0.748178,23802.0,23801.0,6.011e-05]
[1659272627832,0.398178,23802.0,23801.0,6.011e-05]
[1659272628899,0.448178,23802.0,23801.0,6.011e-05]
[1659272629133,0.499178,23802.0,23801.0,6.011e-05]
[1659272629358,0.449178,23802.0,23801.0,6.011e-05]
[1659272629997,0.799178,23802.0,23801.0,6.011e-05]
[1659272630474,0.77570264,23802.0,23801.0,6.011e-05]
[1659272631137,0.82670264,23802.0,23801.0,6.011e-05]
[1659272632229,0.52670264,23802.0,23801.0,6.011e-05]
[1659272632458,0.42570264,23802.0,23801.0,6.011e-05]
[1659272633153,0.47770264,23802.0,23801.0,6.011e-05]
[1659272634452,0.47770264,23802.0,23801.0,0.00230025]
[1659272634679,0.42570264,23802.0,23801.0,0.00230025]
[1659272635112,0.49170264,23802.0,23801.0,0.00230025]
[1659272636011,0.49170264,23802.0,23801.0,0.00700025]
[1659272636428,0.39670264,23802.0,23801.0,0.00700025]
[1659272636885,0.90780864,23802.0,23801.0,0.00700025]
[1659272637371,1.20780864,23802.0,23801.0,0.00700025]
[1659272637589,0.90780864,23802.0,23801.0,0.00700025]
[1659272637797,1.20780864,23802.0,23801.0,0.00700025]
[1659272638220,1.33600864,23802.0,23801.0,0.00700025]
[1659272638438,1.27000864,23802.0,23801.0,0.00700025]
[1659272639281,1.33800864,23802.0,23801.0,0.00700025]
[1659272640657,1.27000864,23802.0,23801.0,0.00700025]
[1659272641119,1.34400864,23802.0,23801.0,0.00700025]
[1659272642603,1.27000864,23802.0,23801.0,0.00700025]
[1659272642823,1.67726597,23802.0,23801.0,0.00700025]
[1659272643268,1.75126597,23802.0,23801.0,0.00700025]
[1659272644577,1.67726597,23802.0,23801.0,0.00700025]
[1659272645246,3.09026597,23802.0,23801.0,0.00700025]
[1659272646590,3.02726597,23802.0,23801.0,0.00700025]
[1659272647266,2.79026597,23802.0,23801.0,0.00700025]
[1659272650841,2.79026597,23802.0,23801.0,0.00690485]
[1659272651372,3.15326597,23802.0,23801.0,0.00690485]
[1659272652318,2.85326597,23802.0,23801.0,0.00690485]
[1659272652555,2.72726597,23802.0,23801.0,0.00690485]
[1659272653252,2.79026597,23802.0,23801.0,0.00690485]
[1659272654965,2.72726597,23802.0,23801.0,0.00690485]
[1659272655167,2.79026597,23802.0,23801.0,0.00690485]
[1659272656608,2.72726597,23802.0,23801.0,0.00690485]
[1659272657248,2.79026597,23802.0,23801.0,0.00690485]
[1659272658733,2.72726597,23802.0,23801.0,0.00690485]
[1659272659226,2.79026597,23802.0,23801.0,0.00690485]
[1659272660522,2.72726597,23802.0,23801.0,0.00690485]
[1659272661402,2.79026597,23802.0,23801.0,0.00690485]
[1659272661845,3.09026597,23802.0,23801.0,0.00690485]
[1659272662766,3.02715611,23802.0,23801.0,0.00690485]
[1659272662985,2.72715611,23802.0,23801.0,0.00690485]
[1659272663229,2.79015611,23802.0,23801.0,0.00690485]
[1659272663667,2.66195611,23802.0,23801.0,0.00690485]
[1659272664594,2.19169878,23802.0,23801.0,0.00690485]
[1659272664810,1.861106,23802.0,23801.0,0.0197801]
[1659272665059,1.861106,23802.0,23801.0,0.0697801]
[1659272665287,1.930106,23802.0,23801.0,0.0697801]
[1659272665513,1.925106,23802.0,23801.0,0.0697801]
[1659272666169,1.925106,23802.0,23801.0,0.06263157]
[1659272666696,1.925106,23802.0,23801.0,0.06459852]
[1659272666697,1.856106,23802.0,23801.0,0.06459852]
[1659272667374,1.856106,23802.0,23801.0,0.09974705]
[1659272667619,1.856106,23802.0,23801.0,0.50700438]
[1659272667838,1.856106,23802.0,23801.0,0.84233252]
[1659272668523,1.856106,23802.0,23801.0,1.61433252]
[1659272668748,1.856106,23802.0,23801.0,1.11433252]
[1659272669200,1.856106,23802.0,23801.0,1.11421713]
[1659272669438,1.856106,23802.0,23801.0,1.26521713]
[1659272670820,1.856106,23802.0,23801.0,1.21421713]
[1659272671275,1.856106,23802.0,23801.0,1.98015013]
[1659272672667,1.856106,23802.0,23801.0,1.92415013]
[1659272673317,1.856106,23802.0,23801.0,0.86921713]
[1659272674037,1.856106,23802.0,23801.0,0.81921713]
[1659272674709,1.856106,23802.0,23801.0,0.76421713]
[1659272674975,1.856106,23802.0,23801.0,0.73270713]
[1659272675409,1.856106,23802.0,23801.0,0.79370713]
[1659272676106,1.856106,23802.0,23801.0,0.78043374]
[1659272677005,1.856106,23802.0,23801.0,0.71943374]
[1659272677225,1.856106,23802.0,23801.0,0.49501374]
[1659272678175,1.856106,23802.0,23801.0,0.50282112]
[1659272678420,1.856106,23802.0,23801.0,0.49501374]
[1659272678643,1.856106,23802.0,23801.0,0.41601374]
[1659272679088,1.856106,23802.0,23801.0,0.71943374]
[1659272679337,1.856106,23802.0,23801.0,0.49501374]
[1659272679545,1.856106,23802.0,23801.0,0.79843374]
[1659272680634,1.856106,23802.0,23801.0,0.71943374]
[1659272681307,1.856106,23802.0,23801.0,0.79843374]
[1659272681837,1.88363064,23802.0,23801.0,0.79843374]
[1659272682316,1.856106,23802.0,23801.0,0.79843374]
[1659272682552,1.856106,23802.0,23801.0,0.71943374]
[1659272683203,1.856106,23802.0,23801.0,0.79843374]
[1659272684068,1.856106,23802.0,23801.0,0.49501374]
[1659272684543,1.856106,23802.0,23801.0,0.71943374]
[1659272684773,1.856106,23802.0,23801.0,0.41601374]
[1659272685025,1.856106,23802.0,23801.0,0.71943374]
[1659272685239,1.856106,23802.0,23801.0,0.79843374]
[1659272686571,1.856106,23802.0,23801.0,0.41601374]
[1659272686785,1.856106,23802.0,23801.0,0.71943374]
[1659272687015,1.856106,23802.0,23801.0,0.41601374]
[1659272687253,1.856106,23802.0,23801.0,0.49501374]
[1659272687470,1.856106,23802.0,23801.0,0.79843374]
[1659272687693,1.856106,23802.0,23801.0,0.49501374]
[1659272687903,1.856106,23802.0,23801.0,0.79843374]
[1659272688124,1.856106,23802.0,23801.0,0.49501374]
[1659272688347,1.88363064,23802.0,23801.0,0.49501374]
[1659272688586,1.88363064,23802.0,23801.0,0.41601374]
[1659272688816,1.88363064,23802.0,23801.0,0.71943374]
[1659272689075,1.88363064,23802.0,23801.0,0.41601374]
[1659272689314,1.88363064,23802.0,23801.0,0.79843374]
[1659272689562,1.856106,23802.0,23801.0,0.49501374]
[1659272690218,1.856106,23802.0,23801.0,0.79843374]
[1659272690445,1.856106,23802.0,23801.0,0.49501374]
[1659272690706,1.856106,23802.0,23801.0,0.71943374]
[1659272690948,1.856106,23802.0,23801.0,0.41601374]
[1659272691159,1.856106,23802.0,23801.0,0.71943374]
[1659272691380,1.856106,23802.0,23801.0,0.49501374]
[1659272691600,1.856106,23802.0,23801.0,0.79843374]
[1659272691823,1.856106,23802.0,23801.0,0.49501374]
[1659272692492,1.85600753,23802.0,23801.0,0.49501374]
[1659272692722,1.85600753,23802.0,23801.0,0.71943374]
[1659272692979,1.85600753,23802.0,23801.0,0.41601374]
[1659272693258,1.85600753,23802.0,23801.0,0.49501374]
[1659272693924,1.85600753,23802.0,23801.0,0.79843374]
[1659272694140,1.85600753,23802.0,23801.0,0.50838266]
[1659272694361,1.85600753,23802.0,23801.0,0.49501374]
[1659272694584,1.85600753,23802.0,23801.0,0.71943374]
[1659272694853,1.85600753,23802.0,23801.0,0.41601374]
[1659272695278,1.85600753,23802.0,23801.0,0.49501374]
[1659272696633,1.88353217,23802.0,23801.0,0.49501374]
[1659272697217,1.88353217,23802.0,23801.0,0.00875641]
[1659272697311,1.88353217,23802.0,23801.0,0.08775641]
[1659272699397,1.88353217,23802.0,23801.0,0.16675641]
[1659272699619,1.85600753,23802.0,23801.0,0.16675641]
[1659272699833,1.85600753,23802.0,23801.0,0.00875641]
[1659272700527,1.85573938,23802.0,23801.0,0.01448313]
[1659272700809,1.85573938,23802.0,23801.0,0.47174046]
[1659272701058,1.85573938,23802.0,23801.0,0.80667046]
[1659272701282,1.85573938,23802.0,23801.0,0.83616046]
[1659272702497,1.85573938,23802.0,23801.0,0.83645765]
[1659272702723,1.85573938,23802.0,23801.0,0.77545765]
[1659272702964,1.85573938,23802.0,23801.0,1.12545765]
[1659272703198,1.85573938,23802.0,23801.0,1.33566765]
[1659272703199,1.8462891,23802.0,23801.0,1.33566765]
[1659272703433,1.82845169,23802.0,23801.0,1.40766765]
[1659272704121,1.82480505,23802.0,23801.0,1.40766765]
[1659272704639,1.82480505,23802.0,23801.0,1.33566765]
[1659272705358,1.82480505,23802.0,23801.0,1.82476765]
[1659272705590,1.82480505,23802.0,23801.0,3.59870238]
[1659272705802,1.82114957,23802.0,23801.0,3.59870238]
[1659272706717,1.82114957,23802.0,23801.0,3.55170238]
[1659272707406,1.82114957,23802.0,23801.0,3.59870238]
[1659272708074,1.82114957,23802.0,23801.0,3.15660238]
[1659272708523,1.82114957,23802.0,23801.0,3.55170238]
[1659272708720,1.82114957,23802.0,23801.0,3.10960238]
[1659272709447,1.83625859,23802.0,23801.0,3.15652238]
[1659272709688,1.83625859,23802.0,23801.0,3.36644738]
[1659272710148,1.83125859,23802.0,23801.0,3.36644738]
[1659272710374,1.83125859,23802.0,23801.0,3.80854738]
[1659272710588,1.83125859,23802.0,23801.0,3.76154738]
[1659272710982,1.83125859,23802.0,23801.0,3.31944738]
[1659272711328,1.83125859,23802.0,23801.0,3.36644738]
[1659272712718,1.83125859,23802.0,23801.0,3.33493738]
[1659272712950,1.83125859,23802.0,23801.0,3.28793738]
[1659272713343,1.83125859,23802.0,23801.0,3.33493738]
[1659272714065,1.83125859,23802.0,23801.0,3.36644738]
[1659272714199,1.83125859,23802.0,23801.0,3.33493738]
[1659272714407,1.83125859,23802.0,23801.0,3.28793738]
[1659272715227,1.83125859,23802.0,23801.0,3.33493738]
[1659272716389,1.69813895,23802.0,23801.0,3.33493738]
[1659272716621,1.69813895,23802.0,23801.0,3.31944738]
[1659272716622,1.66874571,23802.0,23801.0,3.31944738]
[1659272717056,1.66874571,23802.0,23801.0,1.54551265]
[1659272717277,1.66874571,23802.0,23801.0,1.60151265]
[1659272717536,0.3727,23815.0,23801.0,2.04361265]
[1659272717764,0.3727,23815.0,23806.0,0.53595733]
[1659272717981,0.3727,23815.0,23808.0,0.259873]
[1659272718191,0.3727,23815.0,23809.0,0.71067733]
[1659272718411,0.3727,23815.0,23813.0,0.00572672]
[1659272718636,0.55414,23818.0,23813.0,0.00572672]
[1659272718637,0.5492,23818.0,23814.0,0.0428431]
[1659272718891,0.5492,23818.0,23814.0,0.0072591]
[1659272719090,0.5492,23818.0,23817.0,0.00572672]
[1659272719547,0.57672464,23818.0,23817.0,0.00572672]
[1659272720078,0.5492,23818.0,23817.0,0.00572672]
[1659272720469,0.57672464,23818.0,23817.0,0.00572672]
[1659272720916,0.5492,23818.0,23817.0,0.00572672]
[1659272721365,0.5492,23818.0,23817.0,0.01793648]
[1659272721584,0.57672464,23818.0,23817.0,0.00572672]
[1659272721796,0.57672464,23818.0,23814.0,0.00572672]
[1659272722022,0.57672464,23818.0,23817.0,0.00431204]
[1659272722240,0.5492,23818.0,23817.0,0.00431204]
[1659272722731,0.88014464,23818.0,23817.0,0.00431204]
[1659272722966,0.57672464,23818.0,23817.0,0.00431204]
[1659272723934,0.5492,23818.0,23817.0,0.00431204]
[1659272724562,0.85262,23818.0,23817.0,0.00431204]
[1659272724779,0.5492,23818.0,23817.0,0.00431204]
[1659272726127,0.85262,23818.0,23817.0,0.00423857]
[1659272726557,0.5492,23818.0,23817.0,0.00423857]
[1659272727199,0.85262,23818.0,23817.0,0.00423857]
[1659272727414,0.35494,23821.0,23817.0,0.00423857]
[1659272727633,0.63094464,23820.0,23817.0,0.00423857]
[1659272727910,0.30342,23819.0,23817.0,0.00423857]
[1659272728110,0.30342,23818.0,23817.0,0.00423857]
[1659272728328,0.33094464,23820.0,23817.0,0.00423857]
[1659272728541,0.30342,23819.0,23817.0,0.00423857]
[1659272728767,0.30342,23818.0,23817.0,0.00423857]
[1659272729031,0.02752464,23820.0,23817.0,0.00423857]
[1659272729252,0.30342,23819.0,23817.0,0.00423857]
[1659272729470,0.02752464,23820.0,23817.0,0.00423857]
[1659272729689,0.30342,23819.0,23817.0,0.00423857]
[1659272729898,0.39842,23818.0,23817.0,0.00423857]
[1659272730104,0.095,23818.0,23817.0,0.00423857]
[1659272730323,0.32752464,23820.0,23817.0,0.00423857]
[1659272730535,0.30342,23819.0,23817.0,0.00423857]
[1659272730755,0.39842,23818.0,23817.0,0.00423857]
[1659272730978,0.095,23818.0,23817.0,0.00423857]
[1659272731193,0.32752464,23820.0,23817.0,0.00423857]
[1659272731439,0.30342,23819.0,23817.0,0.00423857]
[1659272731693,0.32752464,23820.0,23817.0,0.00423857]
[1659272731694,0.39812258,23818.0,23817.0,0.00423857]
[1659272731915,0.29535558,23818.0,23817.0,0.00423857]
[1659272732144,0.30342,23818.0,23817.0,0.01246673]
[1659272732370,0.30342,23819.0,23817.0,0.01246673]
[1659272732594,0.41219733,23821.0,23817.0,0.00423857]
[1659272732595,0.30342,23818.0,23817.0,0.00423857]
[1659272732823,0.41219733,23821.0,23817.0,0.00423857]
[1659272733039,0.30342,23820.0,23817.0,0.00423857]
[1659272733261,0.30342,23819.0,23817.0,0.00423857]
[1659272733484,0.09470258,23818.0,23817.0,0.00423857]
[1659272733713,0.30342,23818.0,23817.0,0.00423857]
[1659272733956,0.30342,23820.0,23817.0,0.00423857]
[1659272734164,0.09470258,23818.0,23817.0,0.00423857]
[1659272734614,0.39812258,23818.0,23817.0,0.00423857]
[1659272736151,0.42564722,23818.0,23817.0,0.00423857]
[1659272736608,0.39812258,23818.0,23817.0,0.00423857]
[1659272737076,0.42564722,23818.0,23817.0,0.00423857]
[1659272737315,0.33094464,23818.0,23817.0,0.00423857]
[1659272737540,0.30342,23818.0,23817.0,0.00423857]
[1659272739446,0.5682,23823.0,23817.0,0.00423857]
[1659272739672,0.5682,23823.0,23817.0,0.0113871]
[1659272739673,1.30997733,23822.0,23817.0,0.0113871]
[1659272739897,0.71067733,23821.0,23817.0,0.0113871]
[1659272740125,0.02752464,23820.0,23817.0,0.0113871]
[1659272740362,0.02752464,23820.0,23817.0,0.00423857]
[1659272741264,0.02752464,23820.0,23818.0,0.0051296]
[1659272741708,0.02752464,23820.0,23817.0,0.00423857]
[1659272742648,0.40725733,23821.0,23817.0,0.01711382]
[1659272743134,0.30342,23820.0,23817.0,0.00996529]
[1659272743348,0.40725733,23821.0,23817.0,0.00996529]
[1659272743801,0.02752464,23820.0,23817.0,0.00996529]
[1659272744028,0.02752464,23820.0,23818.0,0.00714853]
[1659272744251,0.02752464,23820.0,23817.0,0.00996529]
[1659272745624,0.02752464,23820.0,23817.0,0.01711382]
[1659272745834,0.30342,23819.0,23817.0,0.00996529]
[1659272746043,0.02752464,23820.0,23817.0,0.00996529]
[1659272746472,0.02752464,23820.0,23817.0,0.00423857]
[1659272747202,0.32752464,23820.0,23817.0,0.00423857]
[1659272747423,0.02752464,23820.0,23817.0,0.00423857]
[1659272748093,0.23741264,23820.0,23817.0,0.00423857]
[1659272748391,0.30342,23819.0,23817.0,0.00423857]
[1659272748611,0.40725733,23819.0,23817.0,0.01273857]
[1659272748826,0.99235733,23819.0,23817.0,0.01273857]
[1659272749280,0.30342,23818.0,23817.0,0.01273857]